fUSD/lending_fUSD_20260405
["ID","MTS","AMOUNT","RATE_DAILY","PERIOD"]
[419761380,1775359857701,-500.0,0.00015839,2]
[419761381,1775359857711,-500.0,0.00015839,2]
[419761382,1775359857720,-874.7,0.00015839,2]
[419761383,1775359857730,-874.7,0.00015839,2]
[419761384,1775359857740,-500.0,0.00015839,2]
[419761385,1775359857750,-500.0,0.00015839,2]
[419761386,1775359857760,-500.0,0.00015839,2]
[419761387,1775359857770,-500.0,0.00015839,2]
[419761388,1775359857782,-500.0,0.00015839,2]
[419761389,1775359857792,-500.0,0.00015839,2]
[419761390,1775359857804,-879.21,0.00015839,2]
[419761391,1775359857815,-879.21,0.00015839,2]
[419761392,1775359857825,-500.0,0.00015839,2]
[419761393,1775359857837,-500.0,0.00015839,2]
[419761394,1775359857848,-500.0,0.00015839,2]
[419761395,1775359857860,-342.04805757,0.00015839,2]
[419761396,1775359857871,-848.54,0.00015839,2]
[419761397,1775359857883,-848.54,0.00015839,2]
[419761398,1775359857893,-500.0,0.00015839,2]
[419761399,1775359857903,-97697.2091726,0.0001584,2]
[419761400,1775359857916,-440.0,0.0001584,2]
[419761401,1775359857927,-166143.042,0.0001584,2]
[419761402,1775359857937,-150.0,0.0001584,2]
[419761403,1775359857947,-1500.0,0.00015846,2]
[419761404,1775359857957,-1500.0,0.00015846,2]
[419761405,1775359857967,-1500.0,0.00015846,2]
[419761406,1775359857978,-501.94346372,0.00015846,2]
[419761407,1775359857988,-1500.0,0.00015846,2]
[419761408,1775359857998,-1500.0,0.00015846,2]
[419761409,1775359858008,-1500.0,0.00015846,2]
[419761410,1775359858019,-150.0,0.00015849,2]
[419761411,1775359858029,-150.0,0.00015849,2]
[419761412,1775359858040,-150.0,0.0001585,2]
[419761413,1775359858050,-150.0,0.00015851,2]
[419761414,1775359858061,-159.0467984,0.00015855,2]
[419761415,1775359858072,-183.05573234,0.00015855,2]
[419761416,1775359858083,-150.0,0.00015855,2]
[419761417,1775359858093,-150.0,0.00015857,2]
[419761418,1775359858104,-447.3229734,0.00015857,2]
[419761419,1775359858114,-440.0,0.00015861,2]
[419761420,1775359858125,-2309.28131584,0.00015864,2]
[419761421,1775359858135,-2500.0,0.00015864,2]
[419761422,1775359858146,-2500.0,0.00015864,2]
[419761423,1775359858156,-2502.46157564,0.00015864,2]
[419761424,1775359858167,-150.0,0.00015868,2]
[419761425,1775359858178,-440.0,0.00015869,2]
[419761426,1775359858514,-150.0,0.0001587,2]
[419761427,1775359858539,-159.0467984,0.00015871,2]
[419761428,1775359858550,-183.05573234,0.00015871,2]
[419761429,1775359858560,-500.0,0.00015871,2]
[419761430,1775359858570,-200.0,0.00015871,2]
[419761431,1775359858581,-500.0,0.00015872,2]
[419761432,1775359858591,-200.0,0.00015872,2]
[419761433,1775359858602,-500.0,0.00015872,2]
[419761434,1775359858613,-500.0,0.00015872,2]
[419761435,1775359858623,-500.0,0.00015872,2]
[419761436,1775359858634,-200.0,0.00015872,2]
[419761437,1775359858644,-200.0,0.00015872,2]
[419761438,1775359858653,-150.0,0.00015872,2]
[419761439,1775359858664,-150.0,0.0001588,2]
[419761440,1775359858673,-150.0,0.00015881,2]
[419761441,1775359858683,-2000.0,0.00015882,2]
[419761442,1775359858693,-2000.0,0.00015882,2]
[419761443,1775359858702,-474.30692472,0.00015883,2]
[419761444,1775359858712,-159.0467984,0.00015887,2]
[419761445,1775359858722,-183.05573234,0.00015887,2]
[419761446,1775359858732,-150.0,0.00015887,2]
[419761447,1775359858742,-500.0,0.0001589,2]
[419761448,1775359858752,-500.0,0.0001589,2]
[419761449,1775359858762,-500.0,0.0001589,2]
[419761450,1775359858772,-500.0,0.0001589,2]
[419761451,1775359858781,-500.0,0.0001589,2]
[419761452,1775359858792,-500.0,0.0001589,2]
[419761453,1775359858802,-500.0,0.0001589,2]
[419761454,1775359858812,-500.0,0.0001589,2]
[419761455,1775359858822,-2500.0,0.0001589,2]
[419761456,1775359858832,-150.0,0.00015892,2]
[419761457,1775359858843,-150.0,0.00015893,2]
[419761458,1775359858853,-4000.0,0.00015895,2]
[419761459,1775359858863,-1311.96,0.00015899,2]
[419761460,1775359858873,-500.0,0.00015899,2]
[419761461,1775359858883,-1044.08552054,0.000159,2]
[419761462,1775359858893,-4594.73927756,0.000159,2]
[419761463,1775359858903,-533.6527,0.000159,2]
[419761464,1775359858913,-150.0,0.000159,2]
[419761465,1775359858923,-150.0,0.000159,2]
[419761466,1775359858933,-157.0,0.000159,2]
[419761467,1775359858943,-157.0,0.000159,2]
[419761468,1775359858952,-157.0,0.000159,3]
[419761469,1775359858962,-157.0,0.000159,3]
[419761470,1775359858971,-157.0,0.000159,3]
[419761471,1775359858981,-150.0,0.000159,2]
[419761472,1775359858991,-150.0,0.000159,2]
[419761473,1775359859001,-150.0,0.000159,2]
[419761474,1775359859012,-25000.0,0.000159,3]
[419761475,1775359859022,-150.0,0.000159,2]
[419761476,1775359859032,-1800.0,0.000159,5]
[419761477,1775359859042,-150.0,0.000159,2]
[419761478,1775359859052,-5398.87950791,0.000159,2]
[419761479,1775359859062,-1964.81499396,0.000159,2]
[419761480,1775359859073,-18794.76242306,0.000159,2]
[419761481,1775359859083,-500.0,0.000159,5]
[419761482,1775359859092,-177.24080314,0.000159,2]
[419761483,1775359859103,-32120.73647165,0.000159,2]
[419761484,1775359859113,-1378.0,0.000159,5]
[419761485,1775359859123,-1688.0,0.000159,5]
[419761486,1775359859132,-1570.73071525,0.000159,2]
[419761487,1775359859143,-2000.0,0.00015901,2]
[419761488,1775359859152,-159.0467984,0.00015903,2]
[419761489,1775359859162,-183.05573234,0.00015903,2]
[419761490,1775359859172,-150.0,0.00015904,2]
[419761491,1775359859182,-150.0,0.00015906,2]
[419761492,1775359859191,-150.0,0.00015914,2]
[419761493,1775359859200,-150.0,0.00015915,2]
[419761494,1775359859210,-881.74,0.00015915,2]
[419761495,1775359859220,-159.0467984,0.00015919,2]
[419761496,1775359859229,-183.05573234,0.00015919,2]
[419761497,1775359859239,-150.0,0.0001592,2]
[419761498,1775359859249,-440.0,0.00015923,2]
[419761499,1775359859259,-150.0,0.00015925,2]
[419761500,1775359859269,-440.0,0.00015925,2]
[419761501,1775359859278,-150.0,0.00015927,2]
[419761502,1775359859288,-150.0,0.00015928,2]
[419761503,1775359859298,-150.0,0.00015935,2]
[419761504,1775359859308,-159.0467984,0.00015935,2]
[419761505,1775359859318,-183.05573234,0.00015935,2]
[419761506,1775359859328,-150.0,0.00015936,2]
[419761507,1775359859337,-150.0,0.00015944,2]
[419761508,1775359859347,-1500.0,0.00015946,2]
[419761509,1775359859358,-1500.0,0.00015946,2]
[419761510,1775359859368,-440.0,0.00015949,2]
[419761511,1775359859378,-150.0,0.0001595,2]
[419761512,1775359859388,-159.0467984,0.00015952,2]
[419761513,1775359859397,-183.05573234,0.00015952,2]
[419761514,1775359859407,-150.0,0.00015952,2]
[419761515,1775359859417,-1413.46382838,0.00015954,2]
[419761516,1775359859427,-1337.87763051,0.00015956,2]
[419761517,1775359859436,-150.0,0.00015957,2]
[419761518,1775359859446,-150.0,0.00015957,2]
[419761519,1775359859456,-150.0,0.0001596,2]
[419761520,1775359859465,-150.0,0.00015962,2]
[419761521,1775359859476,-159.0467984,0.00015968,2]
[419761522,1775359859486,-183.05573234,0.00015968,2]
[419761523,1775359859499,-150.0,0.00015976,2]
[419761524,1775359859514,-150.0,0.00015978,2]
[419761525,1775359859526,-150.0,0.00015979,2]
[419761526,1775359859536,-150.0,0.00015981,2]
[419761527,1775359859546,-2835.96156116,0.00015982,2]
[419761528,1775359859557,-159.0467984,0.00015984,2]
[419761529,1775359859567,-183.05573234,0.00015984,2]
[419761530,1775359859576,-440.0,0.00015985,2]
[419761531,1775359859586,-862.33753078,0.0001599,2]
[419761532,1775359859595,-1500.0,0.00015992,2]
[419761533,1775359859605,-1500.0,0.00015992,2]
[419761534,1775359859615,-418.3764967,0.00015992,2]
[419761535,1775359859625,-1500.0,0.00015992,2]
[419761536,1775359859634,-1858.83764799,0.00015993,2]
[419761537,1775359859644,-1200.26,0.00015996,2]
[419761538,1775359859654,-638.93,0.00015996,2]
[419761539,1775359859663,-1311.96,0.00015996,2]
[419761540,1775359859674,-1311.96,0.00015996,2]
[419761541,1775359859683,-500.0,0.00015996,2]
[419761542,1775359859693,-565.9,0.00015996,2]
[419761543,1775359859703,-874.7,0.00015996,2]
[419761544,1775359859712,-500.0,0.00015996,2]
[419761545,1775359859721,-169.418084,0.00015997,2]
[419761546,1775359859730,-4716.7202612,0.00015997,2]
[419761547,1775359859739,-3190.6658005,0.00015997,2]
[419761548,1775359859749,-135957.7627537,0.00015997,2]
[419761549,1775359859759,-165088.2582047,0.00015997,2]
[419761550,1775359859768,-10000.0539042,0.00015997,2]
[419761551,1775359859777,-242785.0300565,0.00015997,2]
[419761552,1775359859787,-500.0,0.00015998,2]
[419761553,1775359859796,-666.0,0.00015999,2]
[419761554,1775359859806,-666.0,0.00015999,2]
[419761555,1775359859816,-500.0,0.00015999,2]
[419761556,1775359859826,-500.0,0.00015999,2]
[419761557,1775359859836,-500.0,0.00015999,2]
[419761558,1775359859846,-500.0,0.00015999,2]
[419761559,1775359859856,-500.0,0.00015999,2]
[419761560,1775359859865,-500.0,0.00015999,2]
[419761561,1775359859876,-433.23440034,0.00015999,2]
[419761562,1775359859888,-1200.26,0.00015999,2]
[419761563,1775359859898,-1200.26,0.00015999,2]
[419761564,1775359859908,-1200.26,0.00015999,2]
[419761565,1775359859918,-1200.26,0.00015999,2]
[419761566,1775359859928,-1200.26,0.00015999,2]
[419761567,1775359859938,-1200.26,0.00015999,2]
[419761568,1775359859947,-1200.26,0.00015999,2]
[419761569,1775359859956,-1200.26,0.00015999,2]
[419761570,1775359859966,-1200.26,0.00015999,2]
[419761571,1775359859976,-1200.26,0.00015999,2]
[419761572,1775359859986,-1200.26,0.00015999,2]
[419761573,1775359859995,-1200.26,0.00015999,2]
[419761574,1775359860006,-1200.44600283,0.00015999,2]
[419761575,1775359860016,-1161.86,0.00015999,2]
[419761576,1775359860027,-1161.86,0.00015999,2]
[419761577,1775359860037,-1161.86,0.00015999,2]
[419761578,1775359860046,-1161.86,0.00015999,2]
[419761579,1775359860057,-1161.86,0.00015999,2]
[419761580,1775359860067,-1161.86,0.00015999,2]
[419761581,1775359860079,-1161.86,0.00015999,2]
[419761582,1775359860089,-1161.86,0.00015999,2]
[419761583,1775359860100,-1161.86,0.00015999,2]
[419761584,1775359860110,-1161.86,0.00015999,2]
[419761585,1775359860119,-1161.86,0.00015999,2]
[419761586,1775359860130,-1161.86,0.00015999,2]
[419761587,1775359860140,-1161.86,0.00015999,2]
[419761588,1775359860150,-1161.86,0.00015999,2]
[419761589,1775359860160,-1161.86,0.00015999,2]
[419761590,1775359860169,-1162.05993221,0.00015999,2]
[419761591,1775359860179,-899.16,0.00015999,2]
[419761592,1775359860188,-899.16,0.00015999,2]
[419761593,1775359860199,-899.16,0.00015999,2]
[419761594,1775359860215,-899.16,0.00015999,2]
[419761595,1775359860225,-899.16,0.00015999,2]
[419761596,1775359860236,-899.16,0.00015999,2]
[419761597,1775359860246,-899.16,0.00015999,2]
[419761598,1775359860257,-899.16,0.00015999,2]
[419761599,1775359860267,-899.16,0.00015999,2]
[419761600,1775359860282,-899.16,0.00015999,2]
[419761601,1775359860292,-899.16,0.00015999,2]
[419761602,1775359860303,-899.16,0.00015999,2]
[419761603,1775359860313,-899.16,0.00015999,2]
[419761604,1775359860323,-899.16,0.00015999,2]
[419761605,1775359860333,-899.16,0.00015999,2]
[419761606,1775359860343,-899.34397972,0.00015999,2]
[419761607,1775359860353,-638.93,0.00015999,2]
[419761608,1775359860364,-638.93,0.00015999,2]
[419761609,1775359860373,-638.93,0.00015999,2]
[419761610,1775359860383,-638.93,0.00015999,2]
[419761611,1775359860393,-638.93,0.00015999,2]
[419761612,1775359860403,-638.93,0.00015999,2]
[419761613,1775359860414,-638.93,0.00015999,2]
[419761614,1775359860424,-638.93,0.00015999,2]
[419761615,1775359860435,-638.93,0.00015999,2]
[419761616,1775359860445,-638.93,0.00015999,2]
[419761617,1775359860456,-638.93,0.00015999,2]
[419761618,1775359860466,-638.93,0.00015999,2]
[419761619,1775359860476,-639.10130761,0.00015999,2]
[419761620,1775359860487,-500.0,0.00015999,2]
[419761621,1775359860497,-500.0,0.00015999,2]
[419761622,1775359860508,-500.0,0.00015999,2]
[419761623,1775359860518,-500.0,0.00015999,2]
[419761624,1775359860528,-500.0,0.00015999,2]
[419761625,1775359860538,-500.0,0.00015999,2]
[419761626,1775359860548,-500.0,0.00015999,2]
[419761627,1775359860558,-500.0,0.00015999,2]
[419761628,1775359860568,-500.0,0.00015999,2]
[419761629,1775359860578,-500.0,0.00015999,2]
[419761630,1775359860589,-500.0,0.00015999,2]
[419761631,1775359860599,-500.0,0.00015999,2]
[419761632,1775359860610,-484.03247685,0.00015999,2]
[419761633,1775359860620,-1311.96,0.00015999,2]
[419761634,1775359860630,-1311.96,0.00015999,2]
[419761635,1775359860640,-1311.96,0.00015999,2]
[419761636,1775359860650,-1311.96,0.00015999,2]
[419761637,1775359860661,-1311.96,0.00015999,2]
[419761638,1775359860671,-1311.96,0.00015999,2]
[419761639,1775359860682,-1311.96,0.00015999,2]
[419761640,1775359860692,-1311.96,0.00015999,2]
[419761641,1775359860702,-1312.13210814,0.00015999,2]
[419761642,1775359860712,-500.0,0.00015999,2]
[419761643,1775359860723,-500.0,0.00015999,2]
[419761644,1775359860732,-500.0,0.00015999,2]
[419761645,1775359860743,-500.0,0.00015999,2]
[419761646,1775359860753,-500.0,0.00015999,2]
[419761647,1775359860763,-271.41955914,0.00015999,2]
[419761648,1775359860774,-569.21254605,0.00015999,2]
[419761649,1775359860784,-565.9,0.00015999,2]
[419761650,1775359860794,-565.9,0.00015999,2]
[419761651,1775359860806,-565.9,0.00015999,2]
[419761652,1775359860816,-565.9,0.00015999,2]
[419761653,1775359860826,-565.9,0.00015999,2]
[419761654,1775359860835,-565.9,0.00015999,2]
[419761655,1775359860845,-565.9,0.00015999,2]
[419761656,1775359860854,-565.9,0.00015999,2]
[419761657,1775359860864,-565.9,0.00015999,2]
[419761658,1775359860874,-565.9,0.00015999,2]
[419761659,1775359860884,-565.9,0.00015999,2]
[419761660,1775359860895,-566.02,0.00015999,2]
[419761661,1775359860905,-500.0,0.00015999,2]
[419761662,1775359860915,-500.0,0.00015999,2]
[419761663,1775359860924,-500.0,0.00015999,2]
[419761664,1775359860934,-500.0,0.00015999,2]
[419761665,1775359860944,-500.0,0.00015999,2]
[419761666,1775359860954,-590.07729801,0.00015999,2]
[419761667,1775359860964,-874.7,0.00015999,2]
[419761668,1775359860974,-874.7,0.00015999,2]
[419761669,1775359860984,-874.7,0.00015999,2]
[419761670,1775359860994,-874.7,0.00015999,2]
[419761671,1775359861008,-874.7,0.00015999,2]
[419761672,1775359861019,-874.7,0.00015999,2]
[419761673,1775359861029,-874.7,0.00015999,2]
[419761674,1775359861039,-874.7,0.00015999,2]
[419761675,1775359861049,-874.7,0.00015999,2]
[419761676,1775359861058,-874.7,0.00015999,2]
[419761677,1775359861068,-874.7,0.00015999,2]
[419761678,1775359861078,-874.76,0.00015999,2]
[419761679,1775359861088,-500.0,0.00015999,2]
[419761680,1775359861098,-500.0,0.00015999,2]
[419761681,1775359861107,-500.0,0.00015999,2]
[419761682,1775359861116,-500.0,0.00015999,2]
[419761683,1775359861126,-333.65754629,0.00015999,2]
[419761684,1775359861136,-500.0,0.00015999,2]
[419761685,1775359861145,-500.0,0.00015999,2]
[419761686,1775359861155,-500.0,0.00015999,2]
[419761687,1775359861165,-500.0,0.00015999,2]
[419761688,1775359861175,-500.0,0.00015999,2]
[419761689,1775359861185,-500.0,0.00015999,2]
[419761690,1775359861195,-500.0,0.00015999,2]
[419761691,1775359861205,-500.0,0.00015999,2]
[419761692,1775359861215,-500.0,0.00015999,2]
[419761693,1775359861224,-500.0,0.00015999,2]
[419761694,1775359861233,-500.0,0.00015999,2]
[419761695,1775359861244,-500.0,0.00015999,2]
[419761696,1775359861253,-500.0,0.00015999,2]
[419761697,1775359861263,-500.0,0.00015999,2]
[419761698,1775359861275,-500.0,0.00015999,2]
[419761699,1775359861286,-500.0,0.00015999,2]
[419761700,1775359861296,-500.0,0.00015999,2]
[419761701,1775359861308,-500.0,0.00015999,2]
[419761702,1775359861325,-500.0,0.00015999,2]
[419761703,1775359861342,-500.0,0.00015999,2]
[419761704,1775359861354,-500.0,0.00015999,2]
[419761705,1775359861370,-422.60958238,0.00015999,2]
[419761706,1775359861386,-879.21,0.00015999,2]
[419761707,1775359861401,-879.21,0.00015999,2]
[419761708,1775359861416,-879.21,0.00015999,2]
[419761709,1775359861432,-879.21,0.00015999,2]
[419761710,1775359861447,-879.21,0.00015999,2]
[419761711,1775359861462,-879.21,0.00015999,2]
[419761712,1775359861491,-879.21,0.00015999,2]
[419761713,1775359861506,-879.21,0.00015999,2]
[419761714,1775359861523,-879.21,0.00015999,2]
[419761715,1775359861538,-879.21,0.00015999,2]
[419761716,1775359861559,-879.21,0.00015999,2]
[419761717,1775359861577,-879.21,0.00015999,2]
[419761718,1775359861596,-879.21,0.00015999,2]
[419761719,1775359861616,-879.21,0.00015999,2]
[419761720,1775359861630,-879.21,0.00015999,2]
[419761721,1775359861642,-879.43598884,0.00015999,2]
[419761722,1775359861657,-500.0,0.00015999,2]
[419761723,1775359861672,-500.0,0.00015999,2]
[419761724,1775359861686,-500.0,0.00015999,2]
[419761725,1775359861704,-500.0,0.00015999,2]
[419761726,1775359861720,-568.81904464,0.00015999,2]
[419761727,1775359861740,-848.54,0.00015999,2]
[419761728,1775359861752,-848.54,0.00015999,2]
[419761729,1775359861765,-848.54,0.00015999,2]
[419761730,1775359861779,-848.54,0.00015999,2]
[419761731,1775359861793,-848.54,0.00015999,2]
[419761732,1775359861808,-848.54,0.00015999,2]
[419761733,1775359861825,-848.54,0.00015999,2]
[419761734,1775359861843,-848.54,0.00015999,2]
[419761735,1775359861859,-848.54,0.00015999,2]
[419761736,1775359861876,-848.54,0.00015999,2]
[419761737,1775359861892,-848.54,0.00015999,2]
[419761738,1775359861907,-848.54,0.00015999,2]
[419761739,1775359861922,-848.54,0.00015999,2]
[419761740,1775359861939,-848.54,0.00015999,2]
[419761741,1775359861968,-848.54,0.00015999,2]
[419761742,1775359861983,-848.6,0.00015999,2]
[419761743,1775359861997,-500.0,0.00015999,2]
[419761744,1775359862011,-500.0,0.00015999,2]
[419761745,1775359862025,-500.0,0.00015999,2]
[419761746,1775359862039,-500.0,0.00015999,2]
[419761747,1775359862053,-500.0,0.00015999,2]
[419761748,1775359862068,-500.0,0.00015999,2]
[419761749,1775359862081,-500.0,0.00015999,2]
[419761750,1775359862094,-500.0,0.00015999,2]
[419761751,1775359862108,-500.0,0.00015999,2]
[419761752,1775359862121,-500.0,0.00015999,2]
[419761753,1775359862135,-500.0,0.00015999,2]
[419761754,1775359862148,-500.0,0.00015999,2]
[419761755,1775359862161,-500.0,0.00015999,2]
[419761756,1775359862174,-500.0,0.00015999,2]
[419761757,1775359862188,-500.0,0.00015999,2]
[419761758,1775359862201,-500.0,0.00015999,2]
[419761759,1775359862221,-556.59256026,0.00015999,2]
[419761760,1775359862240,-159.0467984,0.00016,2]
[419761761,1775359862260,-245.08435541,0.00016,2]
[419761762,1775359862278,-153.46464447,0.00016,2]
[419761763,1775359862296,-150.14541726,0.00016,2]
[419761764,1775359862316,-150.17540856,0.00016,2]
[419761765,1775359862332,-183.05573234,0.00016,2]
[419761766,1775359862349,-151.22967101,0.00016,2]
[419761767,1775359862365,-150.60277619,0.00016,2]
[419761768,1775359862382,-151.01430456,0.00016,2]
[419761769,1775359862399,-151.90807937,0.00016,2]
[419761770,1775359862416,-287.38140471,0.00016,2]
[419761771,1775359862433,-154.07899059,0.00016,2]
[419761772,1775359862450,-151.75828689,0.00016,2]
[419761773,1775359862465,-154.24536523,0.00016,2]
[419761774,1775359862483,-1408535.44025827,0.00016,2]
[419761775,1775359862499,-1790.62,0.00016,2]
[419761776,1775359862514,-250.0,0.00016,2]
[419761777,1775359862530,-250.0,0.00016,2]
[419761778,1775359862545,-4521585.99087276,0.00016,2]
[419761779,1775359864465,-4033.83217871,0.00016,2]
[419761780,1775359864791,-500.0,0.00013698,2]
[419761781,1775359864803,-200.0,0.000159,5]
[419761782,1775359864812,-19299.755009,0.00016,2]
[419761785,1775360139320,-1200.0,0.00011872,2]
[419761786,1775360139349,-300.0,0.00011872,2]
[419761787,1775360184809,300.0,0.000115,4]
[419761788,1775360187187,505.60472006,0.000116,4]
[419761789,1775360255712,9312.0,9.753e-05,2]
[419761790,1775360261088,1500.0,0.00016101,120]
[419761791,1775360336012,1619.7,0.00016101,120]
[419761800,1775361031915,-500.0,0.00011163,2]
[419761801,1775361031925,-600.0,0.00011174,2]
[419761802,1775361031935,-540.67172989,0.00011186,2]
[419761803,1775361031947,-1059.32827011,0.00011186,2]
[419761804,1775361031956,-600.0,0.00011374,2]
[419761805,1775361031966,-135.1492332,0.00011374,2]
[419761806,1775361032049,-464.8507668,0.00011374,2]
[419761807,1775361032059,-517.49322048,0.00011374,2]
[419761808,1775361032068,-500.0,0.00011421,2]
[419761809,1775361032078,-1400.0,0.000115,4]
[419761810,1775361032088,-2032.24466203,0.000116,4]
[419761811,1775361032099,-498.89387459,0.000116,4]
[419761816,1775361032283,-368.86146338,0.000116,4]
[419761817,1775361032293,-300.0,0.00011611,2]
[419761818,1775361032303,-300.0,0.00011699,2]
[419761819,1775361032313,-300.0,0.00011699,2]
[419761820,1775361032324,-1200.0,0.00011699,2]
[419761821,1775361032334,-300.0,0.00011699,2]
[419761822,1775361032345,-3165.399504,0.000117,4]
[419761823,1775361032357,-1234.600496,0.000117,4]
[419761824,1775361032367,-2932.5868,0.00011708,2]
[419761825,1775361032377,-500.0,0.00011798,2]
[419761826,1775361032387,-500.0,0.00011798,2]
[419761827,1775361032397,-501.0223412,0.00011798,2]
[419761828,1775361032407,-500.0,0.00011798,2]
[419761829,1775361032417,-500.0,0.00011798,2]
[419761830,1775361032428,-500.0,0.00011798,2]
[419761831,1775361032438,-500.0,0.00011798,2]
[419761832,1775361032447,-500.0,0.00011798,2]
[419761833,1775361032456,-500.16972536,0.00011798,2]
[419761834,1775361032465,-166.12572575,0.00011798,2]
[419761835,1775361032475,-500.0,0.00011798,2]
[419761836,1775361032484,-500.0,0.00011798,2]
[419761837,1775361032495,-500.0,0.00011798,2]
[419761838,1775361032506,-500.0,0.00011798,2]
[419761839,1775361032515,-260.293386,0.00011798,2]
[419761840,1775361032525,-500.0,0.00011798,2]
[419761841,1775361032535,-164.2374577,0.00011798,2]
[419761842,1775361032544,-500.0,0.00011798,2]
[419761843,1775361032553,-500.0,0.00011798,2]
[419761844,1775361032562,-500.0,0.00011798,2]
[419761845,1775361032572,-500.0,0.00011798,2]
[419761846,1775361032581,-500.0,0.00011798,2]
[419761847,1775361032590,-500.0,0.00011798,2]
[419761848,1775361032599,-500.0,0.00011798,2]
[419761849,1775361032609,-500.0,0.00011798,2]
[419761850,1775361032618,-500.0,0.00011798,2]
[419761851,1775361032627,-500.0,0.00011798,2]
[419761852,1775361032637,-500.0,0.00011798,2]
[419761853,1775361032646,-500.0,0.00011798,2]
[419761854,1775361032656,-500.0,0.00011798,2]
[419761855,1775361032666,-500.0,0.00011798,2]
[419761856,1775361032675,-500.0,0.00011798,2]
[419761857,1775361032684,-500.0,0.00011798,2]
[419761858,1775361032694,-500.0,0.00011798,2]
[419761859,1775361032703,-500.0,0.00011798,2]
[419761860,1775361032713,-500.0,0.00011798,2]
[419761861,1775361032722,-500.0,0.00011798,2]
[419761862,1775361032732,-500.0,0.00011798,2]
[419761863,1775361032741,-500.0,0.00011798,2]
[419761864,1775361032751,-500.0,0.00011798,2]
[419761865,1775361032761,-500.0,0.00011798,2]
[419761866,1775361032770,-500.0,0.00011798,2]
[419761867,1775361032779,-500.0,0.00011798,2]
[419761868,1775361032789,-500.0,0.00011798,2]
[419761869,1775361032799,-500.0,0.00011798,2]
[419761870,1775361032808,-624.52960497,0.00011798,2]
[419761871,1775361032817,-500.0,0.00011798,2]
[419761872,1775361032827,-500.0,0.00011798,2]
[419761873,1775361032836,-500.0,0.00011798,2]
[419761874,1775361032846,-500.0,0.00011798,2]
[419761875,1775361032855,-500.0,0.00011798,2]
[419761876,1775361032864,-500.0,0.00011798,2]
[419761877,1775361032873,-500.0,0.00011798,2]
[419761878,1775361032883,-500.0,0.00011798,2]
[419761879,1775361032892,-500.0,0.00011798,2]
[419761880,1775361032902,-500.0,0.00011798,2]
[419761881,1775361032911,-329.54010589,0.00011798,2]
[419761882,1775361032997,-170.45989411,0.00011798,2]
[419761883,1775361033007,-500.0,0.00011798,2]
[419761884,1775361033016,-500.0,0.00011798,2]
[419761885,1775361033025,-382.52010589,0.00011798,2]
[419761886,1775361033037,-117.47989411,0.00011798,2]
[419761887,1775361033046,-301.27010589,0.00011798,2]
[419761888,1775361033058,-198.72989411,0.00011798,2]
[419761889,1775361033068,-85.42213804,0.00011798,2]
[419761890,1775361033121,-414.57786196,0.00011798,2]
[419761891,1775361033132,-47.88374042,0.00011798,2]
[419761892,1775361033178,-347.8503141,0.00011798,2]
[419761893,1775361033189,-104.26594548,0.00011798,2]